[Event "*** Titled Tuesday Blitz"]
[Site "Chess.com"]
[Date "2020.11.10"]
[Round "2"]
[White "AlexandraBotez"]
[Black "SergeyShtyka"]
[Result "0-1"]
[WhiteElo "2100"]
[BlackElo "2386"]
[TimeControl "180+1"]
[EndTime "10:19:27 PST"]
[Termination "SergeyShtyka won on time"]

1. d4 {[%clk 0:03:00.9]} 1... c5 {[%clk 0:02:57.1]} 2. d5 {[%clk 0:03:00.6]}
2... e5 {[%clk 0:02:56.7]} 3. c4 {[%clk 0:03:00.1]} 3... d6 {[%clk 0:02:56.7]}
4. Nc3 {[%clk 0:02:59.1]} 4... Be7 {[%clk 0:02:56.9]} 5. e4 {[%clk 0:02:57.9]}
5... Bg5 {[%clk 0:02:56.3]} 6. Nf3 {[%clk 0:02:56.7]} 6... Bxc1 {[%clk
0:02:55.7]} 7. Qxc1 {[%clk 0:02:56.6]} 7... Nf6 {[%clk 0:02:55.5]} 8. h3 {[%clk
0:02:56.2]} 8... O-O {[%clk 0:02:55.3]} 9. Bd3 {[%clk 0:02:48.2]} 9... Nbd7
{[%clk 0:02:54.7]} 10. O-O {[%clk 0:02:45.9]} 10... a6 {[%clk 0:02:53.2]} 11.
Nd2 {[%clk 0:02:37.4]} 11... Re8 {[%clk 0:02:50]} 12. a4 {[%clk 0:02:22]} 12...
b6 {[%clk 0:02:48]} 13. b3 {[%clk 0:02:21.8]} 13... Nf8 {[%clk 0:02:45.6]} 14.
Qc2 {[%clk 0:02:20.9]} 14... Ng6 {[%clk 0:02:45]} 15. Ne2 {[%clk 0:02:18.9]}
15... Nh5 {[%clk 0:02:37.7]} 16. a5 {[%clk 0:01:06.2]} 16... bxa5 {[%clk
0:02:32.9]} 17. Qa2 {[%clk 0:01:05]} 17... Nhf4 {[%clk 0:02:25.4]} 18. Nxf4
{[%clk 0:01:00.2]} 18... Nxf4 {[%clk 0:02:23]} 19. Bc2 {[%clk 0:00:21.3]} 19...
Qg5 {[%clk 0:02:07.6]} 20. g3 {[%clk 0:00:20.3]} 20... Nxh3+ {[%clk 0:02:07.2]}
21. Kg2 {[%clk 0:00:20.5]} 21... Qxd2 {[%clk 0:02:05.4]} 22. Bd1 {[%clk
0:00:18]} 22... Qxa2 {[%clk 0:02:02.3]} 23. Rxa2 {[%clk 0:00:17.7]} 23... Ng5
{[%clk 0:01:57.7]} 24. Rxa5 {[%clk 0:00:16.6]} 24... Nxe4 {[%clk 0:01:56.8]} 25.
f3 {[%clk 0:00:16.6]} 25... Nf6 {[%clk 0:01:54.2]} 26. Bc2 {[%clk 0:00:15.3]}
26... g6 {[%clk 0:01:51.3]} 27. Re1 {[%clk 0:00:15.3]} 27... Kg7 {[%clk
0:01:49.4]} 28. Ra4 {[%clk 0:00:14.1]} 28... Bd7 {[%clk 0:01:48.2]} 29. Ra3
{[%clk 0:00:13.9]} 29... Reb8 {[%clk 0:01:43.9]} 30. Re3 {[%clk 0:00:12.8]}
30... a5 {[%clk 0:01:38.3]} 31. Bd1 {[%clk 0:00:11.7]} 31... Rb4 {[%clk
0:01:35.2]} 32. Rc3 {[%clk 0:00:10.5]} 32... h5 {[%clk 0:01:30]} 33. Kf2 {[%clk
0:00:10.1]} 33... e4 {[%clk 0:01:29.1]} 34. f4 {[%clk 0:00:04]} 34... Bg4 {[%clk
0:01:28.2]} 35. Bc2 {[%clk 0:00:03.6]} 35... Bf5 {[%clk 0:01:27.6]} 36. Bd1
{[%clk 0:00:03]} 36... Ng4+ {[%clk 0:01:25.8]} 37. Bxg4 {[%clk 0:00:03.5]} 37...
Bxg4 {[%clk 0:01:25.7]} 38. Ke3 {[%clk 0:00:04.4]} 38... Bf5 {[%clk 0:01:23.1]}
39. Kf2 {[%clk 0:00:03.8]} 39... Kf6 {[%clk 0:01:22.7]} 40. Ke3 {[%clk
0:00:04.4]} 40... g5 {[%clk 0:01:20.7]} 41. Rc1 {[%clk 0:00:04.1]} 41... a4
{[%clk 0:01:15.8]} 42. bxa4 {[%clk 0:00:02.2]} 42... Rbxa4 {[%clk 0:01:15.4]}
43. Rac3 {[%clk 0:00:02.7]} 43... Ra3 {[%clk 0:01:14.7]} 44. fxg5+ {[%clk
0:00:02.6]} 44... Kxg5 {[%clk 0:01:14.1]} 0-1

[Event "*** Titled Tuesday Blitz"]
[Site "Chess.com"]
[Date "2020.11.10"]
[Round "2"]
[White "Luklei18"]
[Black "Klavdia_Nik"]
[Result "1-0"]
[WhiteElo "2404"]
[BlackElo "2117"]
[TimeControl "180+1"]
[EndTime "10:19:29 PST"]
[Termination "Luklei18 won on time"]

1. c4 {[%clk 0:02:59.4]} 1... Nf6 {[%clk 0:02:57.8]} 2. Nc3 {[%clk 0:02:59.7]}
2... b6 {[%clk 0:02:49.7]} 3. e4 {[%clk 0:02:59.4]} 3... d6 {[%clk 0:02:46.2]}
4. d4 {[%clk 0:02:58.5]} 4... Bb7 {[%clk 0:02:43.7]} 5. Bd3 {[%clk 0:02:58.7]}
5... c5 {[%clk 0:02:40.3]} 6. d5 {[%clk 0:02:57]} 6... g6 {[%clk 0:02:40.1]} 7.
f4 {[%clk 0:02:54.3]} 7... Bg7 {[%clk 0:02:40.3]} 8. Nf3 {[%clk 0:02:52.7]} 8...
O-O {[%clk 0:02:40.2]} 9. O-O {[%clk 0:02:42.7]} 9... Ne8 {[%clk 0:02:29.5]} 10.
e5 {[%clk 0:02:31.7]} 10... a6 {[%clk 0:02:23]} 11. Qe2 {[%clk 0:02:20.8]} 11...
b5 {[%clk 0:02:11]} 12. b3 {[%clk 0:02:06.5]} 12... Nc7 {[%clk 0:01:58.1]} 13.
Bd2 {[%clk 0:01:59.8]} 13... e6 {[%clk 0:01:16.7]} 14. Ne4 {[%clk 0:01:24.6]}
14... exd5 {[%clk 0:01:05.4]} 15. Nxd6 {[%clk 0:01:21.8]} 15... Bc6 {[%clk
0:01:01.4]} 16. cxd5 {[%clk 0:01:16.8]} 16... Nxd5 {[%clk 0:00:57.2]} 17. Rac1
{[%clk 0:01:17.3]} 17... Qb6 {[%clk 0:00:39.1]} 18. Kh1 {[%clk 0:01:10.3]} 18...
Ra7 {[%clk 0:00:31.4]} 19. Qf2 {[%clk 0:00:56.9]} 19... Nd7 {[%clk 0:00:22]} 20.
Ng5 {[%clk 0:00:27.8]} 20... Nb4 {[%clk 0:00:06.3]} 21. Bxb4 {[%clk 0:00:25.8]}
21... cxb4 {[%clk 0:00:04.4]} 22. Qxb6 {[%clk 0:00:26.5]} 22... Nxb6 {[%clk
0:00:02.2]} 23. Rxc6 {[%clk 0:00:27.1]} 1-0

[Event "*** Titled Tuesday Blitz"]
[Site "Chess.com"]
[Date "2020.11.10"]
[Round "2"]
[White "juancruzarias"]
[Black "OldweakGM"]
[Result "1-0"]
[WhiteElo "2579"]
[BlackElo "2841"]
[TimeControl "180+1"]
[EndTime "10:19:31 PST"]
[Termination "juancruzarias won by resignation"]

1. d4 {[%clk 0:03:00.9]} 1... d5 {[%clk 0:02:59.9]} 2. c4 {[%clk 0:03:01]} 2...
c6 {[%clk 0:03:00.5]} 3. Nc3 {[%clk 0:03:01]} 3... Nf6 {[%clk 0:03:00.3]} 4.
cxd5 {[%clk 0:03:01.4]} 4... cxd5 {[%clk 0:03:00.4]} 5. Nf3 {[%clk 0:03:02.3]}
5... Nc6 {[%clk 0:03:00.3]} 6. Bf4 {[%clk 0:03:02.9]} 6... Bf5 {[%clk
0:03:00.1]} 7. e3 {[%clk 0:03:03.1]} 7... e6 {[%clk 0:02:59.7]} 8. Bb5 {[%clk
0:03:03]} 8... Bb4 {[%clk 0:02:58.5]} 9. O-O {[%clk 0:03:01.5]} 9... Bxc3 {[%clk
0:02:51.3]} 10. Bxc6+ {[%clk 0:03:00.2]} 10... bxc6 {[%clk 0:02:51.2]} 11. bxc3
{[%clk 0:03:01.1]} 11... Qa5 {[%clk 0:02:51.2]} 12. Ne5 {[%clk 0:03:00.4]} 12...
Rc8 {[%clk 0:02:49.3]} 13. c4 {[%clk 0:02:58.5]} 13... O-O {[%clk 0:02:48.1]}
14. c5 {[%clk 0:02:30.7]} 14... Ne4 {[%clk 0:02:36.9]} 15. f3 {[%clk 0:02:17.5]}
15... Nf6 {[%clk 0:02:33.5]} 16. g4 {[%clk 0:02:13.6]} 16... Bg6 {[%clk
0:02:33.4]} 17. h4 {[%clk 0:02:13.2]} 17... h6 {[%clk 0:02:33.7]} 18. Nxg6
{[%clk 0:02:04.3]} 18... fxg6 {[%clk 0:02:33.6]} 19. Qc2 {[%clk 0:02:04.6]}
19... Kf7 {[%clk 0:02:29.3]} 20. Rab1 {[%clk 0:02:03.8]} 20... Qa6 {[%clk
0:02:27.2]} 21. Rb3 {[%clk 0:01:41.4]} 21... Rfd8 {[%clk 0:02:23.8]} 22. Rfb1
{[%clk 0:01:33.2]} 22... Rd7 {[%clk 0:02:23.7]} 23. Kg2 {[%clk 0:01:31]} 23...
Qc4 {[%clk 0:02:19.3]} 24. Rc3 {[%clk 0:01:29.8]} 24... Qa6 {[%clk 0:02:18.5]}
25. Be5 {[%clk 0:01:29.4]} 25... Re8 {[%clk 0:02:13.2]} 26. Rcb3 {[%clk
0:01:28.6]} 26... Ree7 {[%clk 0:02:13.2]} 27. Bd6 {[%clk 0:01:19.4]} 27... Re8
{[%clk 0:02:12.1]} 28. Qb2 {[%clk 0:00:58]} 28... Red8 {[%clk 0:02:12.1]} 29.
Ra3 {[%clk 0:00:57.7]} 29... Qc4 {[%clk 0:02:10.3]} 30. Rc3 {[%clk 0:00:57.5]}
30... Qa6 {[%clk 0:02:10.2]} 31. Rb3 {[%clk 0:00:57.3]} 31... Re8 {[%clk
0:02:09.4]} 32. Rf1 {[%clk 0:00:55.8]} 32... Red8 {[%clk 0:02:07.1]} 33. e4
{[%clk 0:00:56]} 33... Qc4 {[%clk 0:02:05.2]} 34. e5 {[%clk 0:00:54.1]} 34...
Ng8 {[%clk 0:02:04.7]} 35. Rc1 {[%clk 0:00:54.2]} 35... Qa6 {[%clk 0:02:04.2]}
36. Qd2 {[%clk 0:00:54.4]} 36... Ne7 {[%clk 0:02:02.8]} 37. Qc2 {[%clk
0:00:51.1]} 37... Ng8 {[%clk 0:02:01.5]} 38. Rcb1 {[%clk 0:00:50.4]} 38... Ne7
{[%clk 0:01:58.5]} 39. Kg3 {[%clk 0:00:50.9]} 39... Ng8 {[%clk 0:01:58.5]} 40.
R1b2 {[%clk 0:00:50]} 40... Ne7 {[%clk 0:01:58.7]} 41. Qb1 {[%clk 0:00:50.6]}
41... Ng8 {[%clk 0:01:57.5]} 42. Rf2 {[%clk 0:00:51.3]} 42... Ne7 {[%clk
0:01:57.5]} 43. f4 {[%clk 0:00:50.9]} 43... Qc4 {[%clk 0:01:57.6]} 44. Rb4
{[%clk 0:00:48.6]} 44... Qc3+ {[%clk 0:01:55.8]} 45. Rf3 {[%clk 0:00:48.2]}
45... Qd2 {[%clk 0:01:56]} 46. Rb7 {[%clk 0:00:37.5]} 46... h5 {[%clk
0:01:52.8]} 47. f5 {[%clk 0:00:34.8]} 47... gxf5 {[%clk 0:01:49.3]} 48. gxf5
{[%clk 0:00:35]} 48... Qh6 {[%clk 0:01:37]} 49. fxe6+ {[%clk 0:00:34.8]} 49...
Kxe6 {[%clk 0:01:36.9]} 50. Bxe7 {[%clk 0:00:26]} 50... Rxb7 {[%clk 0:01:32.1]}
51. Qxb7 {[%clk 0:00:23.8]} 51... Qg6+ {[%clk 0:01:32.5]} 52. Kh2 {[%clk
0:00:20.7]} 52... Qc2+ {[%clk 0:01:31.4]} 53. Kh3 {[%clk 0:00:20.2]} 1-0

[Event "*** Titled Tuesday Blitz"]
[Site "Chess.com"]
[Date "2020.11.10"]
[Round "2"]
[White "JoakimVonAnd"]
[Black "Promacherr"]
[Result "0-1"]
[WhiteElo "2490"]
[BlackElo "2710"]
[TimeControl "180+1"]
[EndTime "10:19:34 PST"]
[Termination "Promacherr won by resignation"]

1. d4 {[%clk 0:03:00.9]} 1... Nf6 {[%clk 0:02:59.8]} 2. c4 {[%clk 0:03:00.8]}
2... e6 {[%clk 0:03:00.1]} 3. Nc3 {[%clk 0:03:00.9]} 3... Bb4 {[%clk 0:02:59.8]}
4. e3 {[%clk 0:03:01.2]} 4... c5 {[%clk 0:02:58.2]} 5. Bd3 {[%clk 0:02:58.5]}
5... O-O {[%clk 0:02:51.7]} 6. Nf3 {[%clk 0:02:58.3]} 6... d5 {[%clk 0:02:51.5]}
7. cxd5 {[%clk 0:02:57.9]} 7... cxd4 {[%clk 0:02:49.8]} 8. Nxd4 {[%clk
0:02:57.3]} 8... Qxd5 {[%clk 0:02:33]} 9. O-O {[%clk 0:02:55.3]} 9... Bxc3
{[%clk 0:02:33.2]} 10. bxc3 {[%clk 0:02:56.2]} 10... b6 {[%clk 0:02:33.7]} 11.
c4 {[%clk 0:02:53.4]} 11... Qd7 {[%clk 0:02:31.9]} 12. Ba3 {[%clk 0:02:37.6]}
12... Rd8 {[%clk 0:02:30.5]} 13. Bc2 {[%clk 0:02:26.1]} 13... Bb7 {[%clk
0:02:29.8]} 14. Ba4 {[%clk 0:02:25.4]} 14... Qc8 {[%clk 0:02:23.3]} 15. Qe2
{[%clk 0:02:24.6]} 15... Na6 {[%clk 0:02:19.4]} 16. Nb3 {[%clk 0:02:05.1]} 16...
Bc6 {[%clk 0:02:05.5]} 17. Bb5 {[%clk 0:02:01.2]} 17... Qb7 {[%clk 0:02:00.1]}
18. c5 {[%clk 0:01:56.3]} 18... Nc7 {[%clk 0:01:47.7]} 19. Bxc6 {[%clk
0:01:53.7]} 19... Qxc6 {[%clk 0:01:48.6]} 20. Rfc1 {[%clk 0:01:46.4]} 20... Rac8
{[%clk 0:01:30]} 21. cxb6 {[%clk 0:01:44.8]} 21... Qxb6 {[%clk 0:01:29.9]} 22.
Bc5 {[%clk 0:01:42]} 22... Qb7 {[%clk 0:01:22.1]} 23. Na5 {[%clk 0:01:38.7]}
23... Qa8 {[%clk 0:01:21.9]} 24. f3 {[%clk 0:01:19.7]} 24... Ncd5 {[%clk
0:01:13.1]} 25. e4 {[%clk 0:01:12.6]} 25... Nf4 {[%clk 0:01:09.9]} 26. Qe3
{[%clk 0:01:04.6]} 26... e5 {[%clk 0:01:00.8]} 27. Be7 {[%clk 0:00:51.3]} 27...
Rd3 {[%clk 0:00:59.7]} 28. Qxa7 {[%clk 0:00:43.3]} 28... Rd2 {[%clk 0:00:58]}
29. Rxc8+ {[%clk 0:00:25.8]} 29... Qxc8 {[%clk 0:00:57.5]} 30. Bxf6 {[%clk
0:00:20.6]} 30... Rxg2+ {[%clk 0:00:56.1]} 31. Kh1 {[%clk 0:00:20.4]} 31...
Rxh2+ {[%clk 0:00:55.2]} 32. Kg1 {[%clk 0:00:19.4]} 32... Rg2+ {[%clk
0:00:55.3]} 33. Kf1 {[%clk 0:00:18.8]} 33... gxf6 {[%clk 0:00:52.6]} 34. Rd1
{[%clk 0:00:08.6]} 34... Qh3 {[%clk 0:00:49.3]} 35. Rd8+ {[%clk 0:00:05.6]}
35... Kg7 {[%clk 0:00:49.2]} 36. Nc6 {[%clk 0:00:04.7]} 36... Qxf3+ {[%clk
0:00:47.9]} 0-1

[Event "*** Titled Tuesday Blitz"]
[Site "Chess.com"]
[Date "2020.11.10"]
[Round "2"]
[White "JoliyRoger"]
[Black "JiiHart"]
[Result "1-0"]
[WhiteElo "2379"]
[BlackElo "2078"]
[TimeControl "180+1"]
[EndTime "10:19:35 PST"]
[Termination "JoliyRoger won by resignation"]

1. Nf3 {[%clk 0:03:00.9]} 1... Nf6 {[%clk 0:02:58.9]} 2. c4 {[%clk 0:03:01.4]}
2... e6 {[%clk 0:02:59]} 3. d4 {[%clk 0:03:01.8]} 3... c5 {[%clk 0:02:59.2]} 4.
d5 {[%clk 0:03:01.9]} 4... exd5 {[%clk 0:02:59.5]} 5. cxd5 {[%clk 0:03:02.5]}
5... d6 {[%clk 0:03:00.2]} 6. Nc3 {[%clk 0:03:03.1]} 6... g6 {[%clk 0:03:00.4]}
7. e4 {[%clk 0:03:03.6]} 7... Bg7 {[%clk 0:03:00.8]} 8. Bd3 {[%clk 0:03:04.2]}
8... O-O {[%clk 0:03:00.5]} 9. h3 {[%clk 0:03:04.8]} 9... b5 {[%clk 0:02:59.8]}
10. Nxb5 {[%clk 0:03:04.4]} 10... Nxe4 {[%clk 0:02:58.7]} 11. Bxe4 {[%clk
0:03:04.4]} 11... Qa5+ {[%clk 0:02:58.2]} 12. Nc3 {[%clk 0:03:04.8]} 12... Bxc3+
{[%clk 0:02:47.2]} 13. bxc3 {[%clk 0:03:04.4]} 13... Re8 {[%clk 0:02:45.5]} 14.
Ng5 {[%clk 0:03:04.5]} 14... f5 {[%clk 0:02:32.9]} 15. O-O {[%clk 0:02:51]}
15... fxe4 {[%clk 0:02:31.3]} 16. Bf4 {[%clk 0:02:27.5]} 16... Qxc3 {[%clk
0:02:12.6]} 17. Re1 {[%clk 0:02:27.4]} 17... Qf6 {[%clk 0:02:08]} 18. Qd2 {[%clk
0:02:13.3]} 18... Ba6 {[%clk 0:01:51.2]} 19. Rab1 {[%clk 0:02:05.6]} 19... e3
{[%clk 0:01:15.9]} 20. Bxe3 {[%clk 0:01:30.3]} 20... Nd7 {[%clk 0:01:13.4]} 21.
Ne6 {[%clk 0:01:29.9]} 21... Rab8 {[%clk 0:01:09.1]} 22. Rxb8 {[%clk 0:01:25.7]}
22... Rxb8 {[%clk 0:01:07.6]} 23. Bg5 {[%clk 0:01:19.5]} 23... Qf5 {[%clk
0:01:02.5]} 24. Qa5 {[%clk 0:00:59.9]} 24... Rb6 {[%clk 0:00:41.3]} 25. Qc3
{[%clk 0:00:56.9]} 25... Ne5 {[%clk 0:00:40.1]} 26. f4 {[%clk 0:00:48.5]} 26...
Qd3 {[%clk 0:00:37.2]} 27. Qa1 {[%clk 0:00:41.8]} 27... Bc4 {[%clk 0:00:14]} 28.
fxe5 {[%clk 0:00:38.2]} 28... Bxd5 {[%clk 0:00:14.2]} 29. Nf4 {[%clk 0:00:35.7]}
29... Qd4+ {[%clk 0:00:13.1]} 30. Qxd4 {[%clk 0:00:35]} 30... cxd4 {[%clk
0:00:14]} 31. Nxd5 {[%clk 0:00:35.6]} 31... Rb2 {[%clk 0:00:14]} 32. exd6 {[%clk
0:00:35]} 1-0

[Event "*** Titled Tuesday Blitz"]
[Site "Chess.com"]
[Date "2020.11.10"]
[Round "2"]
[White "CHESSMASTER759"]
[Black "Mikhal867"]
[Result "1-0"]
[WhiteElo "2654"]
[BlackElo "2344"]
[TimeControl "180+1"]
[EndTime "10:19:36 PST"]
[Termination "CHESSMASTER759 won by resignation"]

1. e4 {[%clk 0:03:00.9]} 1... g6 {[%clk 0:02:58.9]} 2. d4 {[%clk 0:02:59.7]}
2... Bg7 {[%clk 0:02:58.3]} 3. Nc3 {[%clk 0:02:59.7]} 3... d6 {[%clk 0:02:56.5]}
4. f4 {[%clk 0:02:58.6]} 4... a6 {[%clk 0:02:55.4]} 5. Nf3 {[%clk 0:02:58.9]}
5... Nd7 {[%clk 0:02:54.6]} 6. Bd3 {[%clk 0:02:59.1]} 6... c5 {[%clk 0:02:51.2]}
7. dxc5 {[%clk 0:02:56]} 7... Nxc5 {[%clk 0:02:50.5]} 8. Be3 {[%clk 0:02:54.7]}
8... Nxd3+ {[%clk 0:02:46.9]} 9. cxd3 {[%clk 0:02:54.2]} 9... Nf6 {[%clk
0:02:42.3]} 10. O-O {[%clk 0:02:48.1]} 10... O-O {[%clk 0:02:34.4]} 11. h3
{[%clk 0:02:44]} 11... b5 {[%clk 0:02:31.2]} 12. Qe2 {[%clk 0:02:43.5]} 12...
Bb7 {[%clk 0:02:30]} 13. a3 {[%clk 0:02:40.9]} 13... Nd7 {[%clk 0:02:26.4]} 14.
Rac1 {[%clk 0:02:39.1]} 14... Nc5 {[%clk 0:02:26.1]} 15. f5 {[%clk 0:02:32.8]}
15... Rc8 {[%clk 0:02:22.6]} 16. Nd2 {[%clk 0:02:24.5]} 16... e6 {[%clk
0:01:46.6]} 17. d4 {[%clk 0:02:05.8]} 17... Nd7 {[%clk 0:01:30.5]} 18. fxe6
{[%clk 0:02:05.6]} 18... fxe6 {[%clk 0:01:30]} 19. Qg4 {[%clk 0:02:06.5]} 19...
Qe7 {[%clk 0:01:25.8]} 20. Nf3 {[%clk 0:02:03.2]} 20... Nf6 {[%clk 0:01:22.7]}
21. Qh4 {[%clk 0:02:02.4]} 21... Qd7 {[%clk 0:01:14.6]} 22. Ng5 {[%clk
0:02:01.2]} 22... h6 {[%clk 0:01:12.3]} 23. Nf3 {[%clk 0:02:00.4]} 23... g5
{[%clk 0:01:07.3]} 24. Bxg5 {[%clk 0:01:59.8]} 24... hxg5 {[%clk 0:01:03.3]} 25.
Nxg5 {[%clk 0:02:00.7]} 25... Bh8 {[%clk 0:00:47.5]} 26. Ne2 {[%clk 0:01:57.1]}
26... Rxc1 {[%clk 0:00:45.1]} 27. Rxc1 {[%clk 0:01:53.9]} 27... Rc8 {[%clk
0:00:44.1]} 28. Rf1 {[%clk 0:01:51.3]} 28... Rc2 {[%clk 0:00:41.9]} 29. Nf4
{[%clk 0:01:48.8]} 29... Nxe4 {[%clk 0:00:38.5]} 30. Nfxe6 {[%clk 0:01:44.6]}
30... Nf6 {[%clk 0:00:31.5]} 31. Nf4 {[%clk 0:01:41.8]} 31... Qg7 {[%clk
0:00:27.9]} 32. Re1 {[%clk 0:01:39.5]} 32... Ne4 {[%clk 0:00:26.2]} 33. Nxe4
{[%clk 0:01:36.2]} 33... Qxd4+ {[%clk 0:00:25.2]} 34. Kh2 {[%clk 0:01:36.5]}
34... Bxe4 {[%clk 0:00:22.9]} 35. Qd8+ {[%clk 0:01:27.9]} 35... Kh7 {[%clk
0:00:22]} 36. Qe7+ {[%clk 0:01:28]} 36... Bg7 {[%clk 0:00:21.3]} 37. Rxe4 {[%clk
0:01:27.7]} 37... Qf6 {[%clk 0:00:19.8]} 38. Qe8 {[%clk 0:01:21.1]} 38... Rxb2
{[%clk 0:00:18.3]} 39. Qh5+ {[%clk 0:01:03.1]} 39... Bh6 {[%clk 0:00:17.9]} 40.
Nd5 {[%clk 0:01:03.5]} 40... Qg6 {[%clk 0:00:10.1]} 41. Re7+ {[%clk 0:01:02.3]}
1-0

[Event "*** Titled Tuesday Blitz"]
[Site "Chess.com"]
[Date "2020.11.10"]
[Round "2"]
[White "ZverevLev"]
[Black "plumalka"]
[Result "0-1"]
[WhiteElo "2282"]
[BlackElo "2475"]
[TimeControl "180+1"]
[EndTime "10:19:38 PST"]
[Termination "plumalka won on time"]

1. e4 {[%clk 0:02:57.1]} 1... c5 {[%clk 0:03:00.1]} 2. Nf3 {[%clk 0:02:56.3]}
2... d6 {[%clk 0:03:00.1]} 3. d4 {[%clk 0:02:56]} 3... cxd4 {[%clk 0:03:01]} 4.
Nxd4 {[%clk 0:02:53.9]} 4... Nf6 {[%clk 0:03:00.6]} 5. Nc3 {[%clk 0:02:48.5]}
5... Bd7 {[%clk 0:03:00.4]} 6. Bg5 {[%clk 0:02:45.1]} 6... e6 {[%clk 0:03:00.4]}
7. Ndb5 {[%clk 0:02:31.1]} 7... Bc6 {[%clk 0:02:58.1]} 8. Bd3 {[%clk 0:02:24.3]}
8... Qb6 {[%clk 0:02:52.7]} 9. Be3 {[%clk 0:02:19.1]} 9... Qd8 {[%clk
0:02:47.9]} 10. O-O {[%clk 0:02:11.4]} 10... a6 {[%clk 0:02:47.8]} 11. Nd4
{[%clk 0:02:06.6]} 11... Be7 {[%clk 0:02:47.9]} 12. f4 {[%clk 0:02:05.5]} 12...
Nbd7 {[%clk 0:02:46.8]} 13. Qe2 {[%clk 0:02:01.5]} 13... O-O {[%clk 0:02:46.5]}
14. Rad1 {[%clk 0:01:58.7]} 14... Qc7 {[%clk 0:02:45.7]} 15. a4 {[%clk 0:01:15]}
15... Nc5 {[%clk 0:02:43.8]} 16. Nxc6 {[%clk 0:01:11.6]} 16... Qxc6 {[%clk
0:02:42.7]} 17. e5 {[%clk 0:01:10.5]} 17... dxe5 {[%clk 0:02:36.1]} 18. fxe5
{[%clk 0:01:08.7]} 18... Nfd7 {[%clk 0:02:36.1]} 19. Bd4 {[%clk 0:00:45.9]}
19... Nxd3 {[%clk 0:02:34.2]} 20. Rxd3 {[%clk 0:00:46.8]} 20... Bc5 {[%clk
0:02:33.1]} 21. Rfd1 {[%clk 0:00:42.6]} 21... Bxd4+ {[%clk 0:02:30.1]} 22. Rxd4
{[%clk 0:00:43.5]} 22... Nc5 {[%clk 0:02:23.7]} 23. Rd6 {[%clk 0:00:38.7]} 23...
Qc7 {[%clk 0:02:22.1]} 24. b4 {[%clk 0:00:26.7]} 24... Nd7 {[%clk 0:02:22.2]}
25. Rxd7 {[%clk 0:00:23.9]} 25... Qxc3 {[%clk 0:02:21.8]} 26. Rxb7 {[%clk
0:00:21.3]} 26... Rfd8 {[%clk 0:02:19.7]} 27. Rxd8+ {[%clk 0:00:16.3]} 27...
Rxd8 {[%clk 0:02:20.6]} 28. h3 {[%clk 0:00:16.2]} 28... h6 {[%clk 0:02:16.4]}
29. Kh2 {[%clk 0:00:14.5]} 29... Rd2 {[%clk 0:02:12.9]} 30. Qe4 {[%clk
0:00:12.9]} 30... g6 {[%clk 0:02:11.8]} 31. Rb8+ {[%clk 0:00:12.2]} 31... Kg7
{[%clk 0:02:11.6]} 32. Qf4 {[%clk 0:00:12.3]} 32... Rxg2+ {[%clk 0:01:35.5]} 33.
Kxg2 {[%clk 0:00:11.6]} 33... Qxc2+ {[%clk 0:01:35.6]} 34. Kg1 {[%clk
0:00:10.1]} 34... Qd1+ {[%clk 0:01:33.5]} 35. Kf2 {[%clk 0:00:09.9]} 35... Qc2+
{[%clk 0:01:32.8]} 36. Ke1 {[%clk 0:00:09.5]} 36... Qc3+ {[%clk 0:01:29.9]} 37.
Ke2 {[%clk 0:00:05.3]} 37... Qc2+ {[%clk 0:01:30.1]} 38. Qd2 {[%clk 0:00:04.7]}
38... Qe4+ {[%clk 0:01:30]} 39. Kd1 {[%clk 0:00:05.2]} 39... Qb1+ {[%clk
0:01:29.8]} 40. Qc1 {[%clk 0:00:03.1]} 40... Qd3+ {[%clk 0:01:29.7]} 41. Qd2
{[%clk 0:00:01.6]} 41... Qb1+ {[%clk 0:01:29.5]} 42. Ke2 {[%clk 0:00:02.3]}
42... Qe4+ {[%clk 0:01:29.5]} 43. Kf2 {[%clk 0:00:02.4]} 43... Qxe5 {[%clk
0:01:27]} 44. Rc8 {[%clk 0:00:01.1]} 44... Qf5+ {[%clk 0:01:26]} 0-1

[Event "*** Titled Tuesday Blitz"]
[Site "Chess.com"]
[Date "2020.11.10"]
[Round "2"]
[White "Gulkov_Igor"]
[Black "H3nriqueTV"]
[Result "1-0"]
[WhiteElo "2468"]
[BlackElo "2275"]
[TimeControl "180+1"]
[EndTime "10:19:38 PST"]
[Termination "Gulkov_Igor won by checkmate"]

1. Nf3 {[%clk 0:02:22.2]} 1... d5 {[%clk 0:02:57]} 2. d4 {[%clk 0:02:21.7]} 2...
Nf6 {[%clk 0:02:48.5]} 3. c4 {[%clk 0:02:21.9]} 3... c6 {[%clk 0:02:48.7]} 4.
Nc3 {[%clk 0:02:19.7]} 4... e6 {[%clk 0:02:46.8]} 5. Bg5 {[%clk 0:02:18]} 5...
Be7 {[%clk 0:02:47.4]} 6. e3 {[%clk 0:02:17.7]} 6... Ne4 {[%clk 0:02:48]} 7.
Bxe7 {[%clk 0:02:16.9]} 7... Qxe7 {[%clk 0:02:48.5]} 8. Rc1 {[%clk 0:02:17.3]}
8... O-O {[%clk 0:02:47.8]} 9. Bd3 {[%clk 0:02:17.2]} 9... f5 {[%clk 0:02:48.3]}
10. O-O {[%clk 0:02:17]} 10... Nd7 {[%clk 0:02:48.9]} 11. Qc2 {[%clk 0:02:17.1]}
11... g5 {[%clk 0:02:39.5]} 12. Ne2 {[%clk 0:02:15.8]} 12... g4 {[%clk
0:02:36.8]} 13. Nd2 {[%clk 0:02:14.9]} 13... Ng5 {[%clk 0:02:34.9]} 14. Nf4
{[%clk 0:02:14.3]} 14... Nf6 {[%clk 0:02:34.3]} 15. cxd5 {[%clk 0:02:05.4]}
15... cxd5 {[%clk 0:02:34.1]} 16. Qc7 {[%clk 0:02:04.6]} 16... Bd7 {[%clk
0:02:23.3]} 17. Qc5 {[%clk 0:02:00.6]} 17... Qxc5 {[%clk 0:02:21.6]} 18. Rxc5
{[%clk 0:01:59.5]} 18... Bc6 {[%clk 0:02:18.7]} 19. Rfc1 {[%clk 0:01:58.1]}
19... Nd7 {[%clk 0:02:07.4]} 20. R5c2 {[%clk 0:01:56.9]} 20... e5 {[%clk
0:02:03.4]} 21. dxe5 {[%clk 0:01:53.6]} 21... Nxe5 {[%clk 0:02:03.7]} 22. Bf1
{[%clk 0:01:49]} 22... Rfd8 {[%clk 0:01:46.3]} 23. Nb3 {[%clk 0:01:46.4]} 23...
Ba4 {[%clk 0:01:40.1]} 24. Rc7 {[%clk 0:01:45.4]} 24... Bc6 {[%clk 0:01:30.4]}
25. Nd4 {[%clk 0:01:43.9]} 25... Rac8 {[%clk 0:01:26.7]} 26. Rxc8 {[%clk
0:01:41.6]} 26... Rxc8 {[%clk 0:01:25.7]} 27. Nxf5 {[%clk 0:01:41.6]} 27... Re8
{[%clk 0:01:20.2]} 28. Nd4 {[%clk 0:01:41.3]} 28... Ne4 {[%clk 0:01:16.2]} 29.
Bd3 {[%clk 0:01:31.8]} 29... Nxd3 {[%clk 0:01:08]} 30. Nxd3 {[%clk 0:01:29.9]}
30... Rc8 {[%clk 0:00:53.6]} 31. Nf4 {[%clk 0:01:28.5]} 31... Rb8 {[%clk
0:00:44.5]} 32. f3 {[%clk 0:01:26.7]} 32... gxf3 {[%clk 0:00:41.2]} 33. gxf3
{[%clk 0:01:26.8]} 33... Ng5 {[%clk 0:00:39.6]} 34. Kf2 {[%clk 0:01:24.8]} 34...
Kf8 {[%clk 0:00:38.8]} 35. Nfe6+ {[%clk 0:01:22.6]} 35... Nxe6 {[%clk
0:00:37.7]} 36. Nxe6+ {[%clk 0:01:23.2]} 36... Ke7 {[%clk 0:00:38.6]} 37. Nd4
{[%clk 0:01:23.4]} 37... Bd7 {[%clk 0:00:37.2]} 38. a3 {[%clk 0:01:18.4]} 38...
Kd6 {[%clk 0:00:37.2]} 39. Rg1 {[%clk 0:01:15.9]} 39... Rc8 {[%clk 0:00:35]} 40.
Ke2 {[%clk 0:01:08.3]} 40... a6 {[%clk 0:00:29.2]} 41. Kd2 {[%clk 0:01:08.3]}
41... b5 {[%clk 0:00:29.1]} 42. Rg5 {[%clk 0:01:06.3]} 42... a5 {[%clk
0:00:26.8]} 43. Rh5 {[%clk 0:01:02.5]} 43... Rh8 {[%clk 0:00:23.3]} 44. Rh6+
{[%clk 0:01:01.7]} 44... Kc5 {[%clk 0:00:21.6]} 45. Nb3+ {[%clk 0:00:56.4]}
45... Kc4 {[%clk 0:00:21.6]} 46. Nxa5+ {[%clk 0:00:56]} 46... Kc5 {[%clk
0:00:22.3]} 47. b4# {[%clk 0:00:52]} 1-0